bitfinex-derivatives/quotes_SOLF0:USTF0_20251207
["timestamp","ask_amount","ask_price","bid_price","bid_amount"]
[1765101447739,3.13,131.91,131.9,0.05689075]
[1765101451033,6.87234053,131.92,131.86,3.25]
[1765101451034,3.13,131.9,131.86,9.4452162]
[1765101451343,3.13,131.9,131.85,21.01408626]
[1765101451344,64.68,131.9,131.88,3.25]
[1765101452247,64.68,131.9,131.89,3.25]
[1765101453837,64.68,131.9,131.89,12.6952162]
[1765101454038,0.05565032,131.91,131.9,3.25]
[1765101460251,0.05565032,131.91,131.9,12.6952162]
[1765101460652,0.05565032,131.91,131.9,3.25]
[1765101461251,0.05565032,131.91,131.9,12.6952162]
[1765101466350,3.18565032,131.91,131.9,9.4452162]
[1765101466952,3.18565032,131.91,131.9,12.6952162]
[1765101467152,0.05565032,131.91,131.9,12.6952162]
[1765101482567,3.39565032,131.91,131.9,12.7352162]
[1765101482768,3.39565032,131.91,131.9,9.4452162]
[1765101482964,3.34,131.9,131.89,9.4452162]
[1765101483371,3.34,131.9,131.88,9.50156057]
[1765101489472,10.1629,131.9,131.88,9.50156057]
[1765101489674,5.39911469,131.89,131.88,0.05634437]
[1765101495376,3.34,131.89,131.88,0.05634437]
[1765101514198,5.39911469,131.89,131.88,0.05634437]
[1765101524505,3.34,131.89,131.88,0.05634437]
[1765101526605,64.68,131.9,131.88,3.42634437]
[1765101526899,68.01,131.9,131.88,3.42634437]
[1765101527298,3.33,131.89,131.88,3.42634437]
[1765101527493,3.33,131.89,131.88,0.05634437]
[1765101527908,64.68,131.9,131.88,3.22634437]
[1765101528106,67.98,131.9,131.88,3.22634437]
[1765101528307,3.3,131.89,131.88,3.22634437]
[1765101530408,10.17795032,131.91,131.88,3.22634437]
[1765101530705,74.85795032,131.91,131.88,3.22634437]
[1765101532602,3.3,131.9,131.88,3.22634437]
[1765101534210,3.3,131.9,131.88,12.67156057]
[1765101535109,3.3,131.9,131.89,3.17]
[1765101538714,3.3,131.9,131.88,3.22634437]
[1765101539711,3.3,131.9,131.88,0.05634437]
[1765101539712,3.08,131.89,131.88,0.05634437]
[1765101542909,3.08,131.87,131.86,9.4452162]
[1765101543107,3.08,131.86,131.85,9.4452162]
[1765101543311,3.08,131.86,131.85,12.6752162]
[1765101544117,3.08,131.86,131.85,9.4452162]
[1765101545518,3.08,131.86,131.85,12.6752162]
[1765101546620,71.56127548,131.87,131.85,12.6752162]
[1765101546916,3.08,131.86,131.84,12.72855279]
[1765101550725,3.08,131.86,131.85,3.23]
[1765101552227,71.56127548,131.87,131.85,3.23]
[1765101552228,74.64127548,131.87,131.85,3.23]
[1765101553623,3.08,131.86,131.85,3.23]
[1765101554030,74.64127548,131.87,131.85,3.23]
[1765101555024,71.56127548,131.87,131.85,3.23]
[1765101556528,74.64127548,131.87,131.85,3.23]
[1765101557929,3.18,131.86,131.84,12.65855279]
[1765101568944,3.18,131.86,131.84,9.49855279]
[1765101569241,3.18,131.86,131.84,0.05333659]
[1765101570141,3.18,131.86,131.84,3.21333659]
[1765101572739,10.0049,131.86,131.84,0.05333659]
[1765101572944,3.18,131.85,131.84,0.05333659]
[1765101575946,3.18,131.85,131.84,3.21333659]
[1765101578142,3.18,131.85,131.84,0.05333659]
[1765101580856,6.8249,131.86,131.84,3.21333659]
[1765101581053,10.0049,131.86,131.84,3.21333659]
[1765101584657,3.18,131.86,131.84,3.21333659]
[1765101585253,67.95666734,131.87,131.84,3.21333659]
[1765101585254,6.45666734,131.87,131.84,3.21333659]
[1765101585454,67.91687548,131.87,131.84,3.21333659]
[1765101586553,67.91687548,131.87,131.85,3.16]
[1765101591869,64.73687548,131.87,131.85,3.16]
[1765101592071,64.73687548,131.87,131.86,3.28]
[1765101598576,67.89687548,131.87,131.86,3.28]
[1765101598775,67.89687548,131.87,131.85,16.2705162]
[1765101598776,3.16,131.86,131.85,16.2705162]
[1765101599079,3.16,131.86,131.85,9.4452162]
[1765101599975,3.16,131.86,131.85,12.6452162]
[1765101600273,3.16,131.86,131.85,3.2]
[1765101600671,3.16,131.86,131.84,9.49855279]
[1765101600973,3.16,131.86,131.84,12.69855279]
[1765101601175,3.16,131.86,131.85,3.2]
[1765101603276,3.16,131.86,131.84,9.49855279]
[1765101604076,3.25,131.86,131.85,3.2]
[1765101604279,3.25,131.86,131.84,12.69855279]
[1765101605380,3.25,131.86,131.85,3.2]
[1765101605573,5.36797188,131.87,131.85,3.2]
[1765101605777,0.05687548,131.87,131.86,3.2]
[1765101606974,3.30687548,131.87,131.85,9.4452162]
[1765101607177,3.30687548,131.87,131.85,3.2]
[1765101607377,5.36797188,131.87,131.85,3.2]
[1765101607582,3.25,131.86,131.85,3.2]
[1765101609186,3.30687548,131.87,131.85,3.2]
[1765101609588,0.05687548,131.87,131.85,3.2]
[1765101609784,0.05687548,131.87,131.85,12.6452162]
[1765101609975,0.05687548,131.87,131.86,3.2]
[1765101610673,0.05687548,131.87,131.86,12.6452162]
[1765101626797,3.40687548,131.87,131.86,9.4452162]
[1765101626996,3.40687548,131.87,131.85,3.05]
[1765101627592,10.23147548,131.87,131.85,3.05]
[1765101627805,10.23147548,131.87,131.84,9.49855279]
[1765101627806,3.35,131.85,131.84,9.49855279]
[1765101628100,3.35,131.85,131.84,12.54855279]
[1765101628890,3.40687548,131.87,131.85,3.05]
[1765101631606,0.05687548,131.87,131.85,3.05]
[1765101633600,0.05687548,131.87,131.86,3.05]
[1765101643024,3.40687548,131.87,131.86,9.4523461]
[1765101643916,0.05687548,131.87,131.86,12.5023461]
[1765101646123,0.05687548,131.87,131.86,3.05]
[1765101648124,0.05687548,131.87,131.86,17.23918626]
[1765101654827,74.7016,131.93,131.88,3.16]
[1765101655036,3.22,131.92,131.89,3.16]
[1765101656029,3.27657605,131.92,131.89,3.21181689]
[1765101660529,3.27657605,131.92,131.9,3.38]
[1765101663936,0.05657605,131.92,131.9,3.38]
[1765101664440,3.26657605,131.92,131.9,3.38]
[1765101665935,0.05657605,131.92,131.9,3.38]
[1765101668739,0.05657605,131.92,131.9,10.2026]
[1765101669040,0.05657605,131.92,131.91,3.38]
[1765101687448,0.05657605,131.92,131.91,12.83099802]
[1765101687952,10.01,131.96,131.92,3.15]
[1765101688754,0.05047426,131.95,131.93,3.20200953]
[1765101688952,3.24047426,131.95,131.93,3.20200953]
[1765101694856,0.05047426,131.95,131.93,3.20200953]
[1765101696161,0.05047426,131.95,131.93,10.02310953]
[1765101696358,0.05047426,131.95,131.94,3.15]
[1765101702758,62.49013675,131.97,131.96,3.15]
[1765101704461,0.05298777,131.98,131.96,3.15]
[1765101704654,0.05298777,131.98,131.96,3.200614]
[1765101705366,0.05298777,131.98,131.97,3.15]
[1765101705568,0.05298777,131.98,131.97,12.60099802]
[1765101706173,0.05298777,131.98,131.97,3.15]
[1765101706866,0.05298777,131.98,131.97,12.60099802]
[1765101709071,0.05298777,131.98,131.97,3.15]
[1765101710864,0.05298777,131.98,131.97,12.60099802]
[1765101711068,64.62,132.02,131.99,3.12]
[1765101711267,67.97,132.02,131.99,3.12]
[1765101712174,64.67420651,132.02,131.99,3.16910952]
[1765101712373,68.02420651,132.02,131.99,3.16910952]
[1765101712572,68.02420651,132.02,132.0,3.12]
[1765101716170,64.67420651,132.02,132.0,3.12]
[1765101717178,0.05420651,132.02,132.0,3.12]
[1765101717680,0.05420651,132.02,132.0,9.9372]
[1765101717979,0.05420651,132.02,132.01,3.12]
[1765101744107,0.05420651,132.02,132.01,12.52269063]
[1765101747108,0.05420651,132.02,132.01,9.40269063]
[1765101747109,3.19420651,132.02,132.01,9.40269063]
[1765101747301,3.19420651,132.02,132.0,19.26989063]
[1765101747704,3.19420651,132.02,132.0,12.45269063]
[1765101747900,3.19420651,132.02,132.0,9.40269063]
[1765101748098,3.19420651,132.02,131.99,3.09910952]
[1765101749106,3.19420651,132.02,131.99,12.50180015]
[1765101751203,3.19420651,132.02,132.0,3.05]
[1765101751903,3.19420651,132.02,131.99,9.45180015]
[1765101751904,3.19420651,132.02,131.99,12.50180015]
[1765101753008,3.19420651,132.02,132.0,3.05]
[1765101753704,0.05420651,132.02,132.01,3.05]
[1765101755615,3.19420651,132.02,132.01,3.05]
[1765101755804,3.19420651,132.02,132.01,12.47942057]
[1765101758506,0.05420651,132.02,132.01,12.47942057]
[1765101758714,0.05420651,132.02,132.01,3.05]
[1765101767816,3.16,132.07,132.04,3.22]
[1765101768022,3.16,132.07,132.04,12.65477566]
[1765101768915,3.20802681,132.07,132.04,12.71049932]
[1765101769112,3.20802681,132.07,132.04,19.52589932]
[1765101769425,3.20802681,132.07,132.04,12.71049932]
[1765101769725,5.26439682,132.07,132.04,9.49049932]
[1765101770023,3.16,132.06,132.04,0.05572366]
[1765101773528,64.56,132.05,132.04,0.05572366]
[1765101773825,67.72,132.05,132.04,0.05572366]
[1765101780223,3.35,132.03,132.01,9.43477566]
[1765101780418,3.35,132.03,131.99,12.67477566]
[1765101780827,3.35,132.02,131.99,12.67477566]
[1765101781330,3.39835161,132.02,131.99,12.7227426]
[1765101781527,64.56,132.01,131.99,12.7227426]
[1765101781829,67.91,132.01,131.99,12.7227426]
[1765101782337,3.35,132.0,131.99,0.04796694]
[1765101785528,3.35,132.0,131.96,9.43477566]
[1765101785733,3.35,131.96,131.93,9.43477566]
[1765101785933,3.35,131.95,131.92,3.24]
[1765101786637,3.40725333,131.95,131.92,3.29102229]
[1765101788431,3.40725333,131.95,131.92,0.05102229]
[1765101789243,3.35,131.93,131.92,0.05102229]
[1765101789937,0.05725333,131.95,131.92,3.29102229]
[1765101790143,3.40725333,131.95,131.92,3.29102229]
[1765101790534,0.05725333,131.95,131.92,3.29102229]
[1765101799549,3.37725333,131.95,131.92,3.29102229]
[1765101806246,0.05725333,131.95,131.92,3.29102229]
[1765101806649,3.37725333,131.95,131.92,3.29102229]
[1765101807052,3.37725333,131.95,131.93,3.36]
[1765101810653,3.37725333,131.95,131.92,10.23262229]
[1765101810849,3.37725333,131.95,131.92,0.05102229]
[1765101811048,3.32,131.94,131.92,0.05102229]
[1765101818361,0.05725333,131.95,131.92,3.41102229]
[1765101819355,3.37725333,131.95,131.92,3.41102229]
[1765101830468,3.37725333,131.95,131.92,0.05102229]
[1765101831280,3.29,131.93,131.92,3.18102229]
[1765101834183,0.05725333,131.95,131.92,3.18102229]
[1765101840285,0.05725333,131.95,131.92,17.37020855]
[1765101840785,0.05725333,131.95,131.93,3.13]
[1765101841876,3.11725333,131.95,131.92,0.05102229]
[1765101842081,3.11725333,131.95,131.92,3.18102229]
[1765101844487,9.93775333,131.95,131.92,3.18102229]
[1765101844682,3.06,131.94,131.92,3.18102229]
[1765101844884,9.93775333,131.95,131.92,3.18102229]
[1765101846089,3.06,131.94,131.92,3.18102229]
[1765101853693,0.05725333,131.95,131.92,10.00232229]
[1765101853992,0.05725333,131.95,131.93,3.13]
[1765101854598,0.05725333,131.95,131.93,9.9511]
[1765101857198,3.11725333,131.95,131.93,9.9511]
[1765101857591,3.11725333,131.95,131.93,6.8211]
[1765101857789,3.11725333,131.95,131.93,9.9311]
[1765101862101,5.17610671,131.95,131.93,6.8211]
[1765101862303,3.17,131.94,131.93,6.8211]
[1765101865103,3.17,131.94,131.92,3.16102229]
[1765101865997,3.17,131.94,131.92,0.05102229]
[1765101866610,3.17,131.94,131.92,3.16102229]
[1765101867702,2.11610671,131.95,131.92,3.16102229]
[1765101868002,5.28610671,131.95,131.92,3.16102229]
[1765101869109,3.17,131.94,131.92,3.16102229]
[1765101869600,5.28610671,131.95,131.92,3.16102229]
[1765101870312,0.05725333,131.95,131.92,9.98272229]
[1765101870500,0.05725333,131.95,131.93,3.11]
[1765101875811,3.22725333,131.95,131.93,3.11]
[1765101878907,5.28610671,131.95,131.92,0.05102229]
[1765101879115,3.17,131.94,131.92,0.05102229]
[1765101879611,5.22885338,131.93,131.92,0.05102229]
[1765101881610,6.87745333,131.95,131.92,0.05102229]
[1765101881611,67.84725333,131.95,131.93,3.11]
[1765101882712,3.17,131.94,131.93,3.11]
[1765101883320,64.67725333,131.95,131.93,3.11]
[1765101883615,64.67725333,131.95,131.94,3.11]
[1765101884014,0.05725333,131.95,131.94,3.11]
[1765101891226,3.29725333,131.95,131.93,9.45475045]
[1765101891525,3.29725333,131.95,131.93,12.53475045]
[1765101895828,3.29725333,131.95,131.94,3.08]
[1765101896023,0.05725333,131.95,131.94,3.08]
[1765101901338,3.28725333,131.95,131.94,3.08]
[1765101901544,3.23,131.94,131.93,3.14]
[1765101902246,3.23,131.94,131.93,12.59475045]
[1765101904344,10.10765333,131.95,131.93,12.59475045]
[1765101904542,6.87765333,131.95,131.94,3.14]
[1765101907036,0.05725333,131.95,131.94,3.14]
[1765101907238,0.05725333,131.95,131.94,12.59475045]
[1765101938079,3.15725333,131.95,131.94,9.45475045]
[1765101939079,3.15725333,131.95,131.93,12.78475045]
[1765101940180,3.15725333,131.95,131.94,3.33]
[1765101940880,0.05725333,131.95,131.94,3.33]
[1765101942780,3.15725333,131.95,131.94,3.33]
[1765101942970,3.15725333,131.95,131.92,7.02723287]
[1765101942971,3.1,131.94,131.92,7.02723287]
[1765101943281,67.7,131.93,131.92,0.05102229]
[1765101947582,64.6,131.93,131.92,3.28102229]
[1765101948584,6.8208,131.94,131.92,3.28102229]
[1765101948882,71.4408,131.94,131.92,3.28102229]
[1765101949892,74.4908,131.94,131.92,3.28102229]
[1765101951188,0.05725333,131.95,131.92,3.28102229]
[1765101952485,6.87755333,131.95,131.92,3.28102229]
[1765101954384,3.06,131.94,131.92,3.28102229]
[1765101956792,3.06,131.94,131.92,0.05102229]
[1765101957482,3.06,131.93,131.92,0.05102229]
[1765101965799,67.68,131.93,131.92,0.05102229]
[1765101967294,3.06,131.93,131.92,0.05102229]
[1765101967603,67.68,131.93,131.92,0.05102229]
[1765101968403,3.06,131.93,131.92,0.05102229]
[1765101968792,67.68,131.93,131.92,3.17102229]
[1765101970303,67.68,131.93,131.92,0.05102229]
[1765101973902,3.06,131.92,131.9,3.12]
[1765101974903,9.8819,131.92,131.88,9.41680941]
[1765101975098,3.10971375,131.91,131.89,0.05649352]
[1765101976497,3.06,131.9,131.89,0.05649352]
[1765101977202,9.93201375,131.91,131.89,3.17649352]
[1765101977410,3.35,131.9,131.89,0.05649352]
[1765101978408,67.97,131.9,131.89,0.05649352]
[1765101978909,3.35,131.88,131.85,9.41680941]
[1765101979112,3.35,131.88,131.84,12.73680941]
[1765101979298,3.35,131.88,131.84,3.32]
[1765101979498,3.35,131.88,131.85,3.32]
[1765101980106,3.39805386,131.88,131.85,3.37726224]
[1765101981216,3.39805386,131.88,131.85,0.05726224]
[1765101982016,3.35,131.87,131.85,0.05726224]
[1765101983011,3.35,131.87,131.85,3.37726224]
[1765101983211,64.64,131.86,131.85,3.37726224]
[1765101984816,3.35,131.87,131.85,3.37726224]
[1765101990026,10.1744,131.87,131.85,3.37726224]
[1765101990321,3.35,131.86,131.85,3.37726224]
[1765101993822,3.35,131.86,131.85,0.05726224]
[1765101994325,3.35,131.86,131.85,3.37726224]
[1765102003734,3.35,131.86,131.85,0.05726224]
[1765102004235,3.35,131.86,131.85,3.37726224]
[1765102009232,3.35,131.86,131.85,0.05726224]
[1765102018445,3.07,131.85,131.83,3.08]
[1765102018649,64.64,131.84,131.83,3.08]
[1765102019745,67.71,131.84,131.83,3.08]
[1765102020549,67.71,131.84,131.82,3.13559432]
[1765102020950,3.07,131.83,131.82,0.05559432]
[1765102021341,3.07,131.83,131.82,9.47240373]
[1765102021542,3.07,131.83,131.82,0.05559432]
[1765102025343,0.0535436,131.85,131.82,3.13559432]
[1765102025541,67.7835436,131.85,131.83,3.08]
[1765102025744,64.7135436,131.85,131.83,3.08]
[1765102025940,64.7135436,131.85,131.84,3.08]
[1765102027649,67.7835436,131.85,131.84,3.08]
[1765102032564,3.1235436,131.85,131.84,3.08]
[1765102034962,3.07,131.9,131.84,3.08]
[1765102035164,67.73,131.9,131.86,3.08]
[1765102035357,3.07,131.9,131.87,3.08]
[1765102035960,3.11940564,131.9,131.87,3.13752132]
[1765102036158,3.11940564,131.9,131.88,3.08]
[1765102039458,0.04940564,131.9,131.88,3.08]
[1765102039968,3.08940564,131.9,131.88,3.08]
[1765102045265,0.04940564,131.9,131.88,3.08]
[1765102046668,0.04940564,131.9,131.88,9.9037]
[1765102047473,0.04940564,131.9,131.89,3.08]
[1765102048270,3.04,131.95,131.91,3.08]
[1765102048466,67.68,131.97,131.91,3.08]
[1765102049172,3.08956972,131.95,131.93,3.13070205]
[1765102049573,3.08956972,131.95,131.93,9.95170205]
[1765102050174,0.04956972,131.95,131.94,3.08]
[1765102050875,3.08956972,131.95,131.93,9.95170205]
[1765102051970,3.08956972,131.95,131.94,3.08]
[1765102052264,0.04956972,131.95,131.94,3.08]
[1765102057783,3.08956972,131.95,131.93,9.95170205]
[1765102058475,3.08956972,131.95,131.93,0.05070205]
[1765102069902,3.08956972,131.95,131.93,3.15070205]
[1765102070100,0.04956972,131.95,131.93,3.15070205]
[1765102071201,3.35956972,131.95,131.93,3.15070205]
[1765102072287,67.95956972,131.95,131.93,3.15070205]
[1765102072492,3.35956972,131.95,131.93,3.15070205]
[1765102077103,0.04956972,131.95,131.93,9.97180205]
[1765102077401,0.04956972,131.95,131.94,3.1]
[1765102086012,0.04956972,131.95,131.94,12.48989906]
[1765102086710,3.31,131.98,131.95,10.0301]
[1765102086915,3.2,131.99,131.96,3.21]
[1765102087817,3.24918026,131.99,131.96,3.25842333]
[1765102092524,3.24918026,131.99,131.96,12.64832239]
[1765102101025,3.1,131.98,131.96,12.64832239]
[1765102103013,3.1,131.98,131.97,3.37]
[1765102104032,3.1,131.97,131.96,9.43832239]
[1765102104224,3.1,131.97,131.96,0.04842333]
[1765102109631,9.9187,131.98,131.96,3.41842333]
[1765102109932,3.1,131.97,131.96,0.04842333]
[1765102112224,6.8203,131.95,131.93,9.38989906]
[1765102112415,3.1,131.97,131.91,9.38989906]
[1765102112416,3.1,131.93,131.91,9.38989906]
[1765102112621,3.1,131.93,131.91,3.37]
[1765102113329,3.15804943,131.93,131.91,3.42620622]
[1765102113827,3.15804943,131.93,131.91,0.05620622]
[1765102118034,3.15804943,131.93,131.91,3.42620622]
[1765102122431,3.15804943,131.93,131.91,0.05620622]
[1765102123432,67.75804943,131.93,131.91,0.05620622]
[1765102123733,3.1,131.92,131.91,0.05620622]
[1765102125936,3.1,131.92,131.91,3.42620622]
[1765102133939,64.65804943,131.93,131.91,3.42620622]
[1765102134132,64.65804943,131.93,131.92,3.28]
[1765102134338,0.05804943,131.93,131.92,3.28]
[1765102140248,0.05804943,131.93,131.92,12.66989906]
[1765102143554,3.12,131.96,131.93,3.15]
[1765102144550,3.17452045,131.96,131.93,3.15]
[1765102144945,3.17452045,131.96,131.94,3.15]
[1765102145146,0.05452045,131.96,131.94,3.20426791]
[1765102145552,0.05452045,131.96,131.94,10.02486791]
[1765102145753,0.05452045,131.96,131.95,3.15]
[1765102147456,3.42452045,131.96,131.95,3.15]
[1765102148058,3.42452045,131.96,131.94,0.05426791]
[1765102149565,3.37,131.95,131.94,0.05426791]
[1765102152358,67.97,131.95,131.94,0.05426791]
[1765102163365,3.37,131.92,131.9,9.38989906]
[1765102163566,3.37,131.9,131.89,12.71989906]
[1765102163774,67.97,131.91,131.89,12.71989906]
[1765102164168,67.97,131.91,131.9,3.33]
[1765102164368,67.97,131.91,131.89,9.43956685]
[1765102164568,67.97,131.91,131.89,12.76956685]
[1765102171281,67.97,131.91,131.89,3.37966779]
[1765102181496,3.37,131.9,131.89,3.37966779]
[1765102181697,3.37,131.9,131.89,0.04966779]
[1765102183593,3.37,131.9,131.89,3.37966779]
[1765102186197,3.41953578,131.92,131.89,10.20286779]
[1765102186402,3.37,131.98,131.91,3.33]
[1765102186606,3.37,131.98,131.93,3.33]
[1765102187299,0.048124,131.97,131.94,3.42551869]
[1765102187603,3.12,131.96,131.94,3.42551869]
[1765102188397,3.12,131.96,131.94,0.05551869]
[1765102189601,9.9398,131.96,131.94,0.05551869]
[1765102190297,6.8198,131.96,131.94,0.05551869]
[1765102190498,3.12,131.95,131.94,0.05551869]
[1765102195190,3.32,131.96,131.94,3.38551869]
[1765102201705,3.32,131.96,131.94,0.05551869]
[1765102202812,10.1397,131.96,131.94,0.05551869]
[1765102202999,3.32,131.95,131.94,0.05551869]
[1765102211319,67.92,131.95,131.94,0.05551869]
[1765102212321,10.1397,131.96,131.94,3.38551869]
[1765102212522,74.7397,131.96,131.94,3.38551869]
[1765102212911,67.92,131.96,131.94,3.38551869]
[1765102213110,3.32,131.96,131.94,3.38551869]
[1765102222731,64.648124,131.97,131.94,3.38551869]
[1765102222930,68.008124,131.97,131.94,3.38551869]
[1765102223626,3.36,131.96,131.94,3.38551869]
[1765102226031,67.988124,131.97,131.95,3.2]
[1765102226531,0.048124,131.97,131.95,10.0201]
[1765102226732,0.048124,131.97,131.96,3.2]
[1765102229029,3.36,132.01,131.97,3.2]
[1765102229227,3.36,132.03,131.98,3.2]
[1765102229427,67.94,132.03,131.98,3.2]
[1765102229628,3.36,132.02,131.98,3.2]
[1765102229832,67.94,132.03,131.98,3.2]
[1765102230125,0.05297925,132.02,132.0,3.2]
[1765102230326,3.36,132.05,132.0,9.38989906]
[1765102230528,3.36,132.05,132.01,3.2]
[1765102231227,0.05718114,132.04,132.03,3.2]
[1765102232034,10.1727,132.1,132.04,3.2]
[1765102232238,3.36,132.09,132.05,3.2]
[1765102232631,10.1717,132.12,132.05,3.2]
[1765102232929,0.05826786,132.1,132.08,3.2]
[1765102233232,3.41826786,132.1,132.08,3.2]
[1765102234026,3.41826786,132.1,132.07,3.25600034]
[1765102237937,3.41826786,132.1,132.07,0.05600034]
[1765102240542,10.23096786,132.1,132.07,0.05600034]
[1765102240843,3.36,132.09,132.07,0.05600034]
[1765102245436,6.87096786,132.1,132.07,3.25600034]
[1765102245636,64.61826786,132.1,132.07,3.25600034]
[1765102245837,67.97826786,132.1,132.07,3.25600034]
[1765102246138,3.36,132.09,132.07,3.25600034]
[1765102247237,3.36,132.09,132.07,0.05600034]
[1765102249151,3.36,132.09,132.07,3.35600034]
[1765102250742,64.59826786,132.1,132.07,3.35600034]
[1765102250947,0.05826786,132.1,132.07,3.35600034]
[1765102251548,0.05826786,132.1,132.07,10.16980034]
[1765102251853,0.05826786,132.1,132.08,3.3]
[1765102252048,3.09826786,132.1,132.08,3.3]
[1765102252454,3.09826786,132.1,132.07,0.05600034]
[1765102254454,3.22,132.09,132.07,0.05600034]
[1765102258243,3.22,132.09,132.07,3.24600034]
[1765102258958,3.22,132.09,132.07,0.05600034]
[1765102259559,3.22,132.09,132.07,3.24600034]
[1765102260056,3.22,132.09,132.07,0.05600034]
[1765102262461,3.27826786,132.1,132.07,3.24600034]
[1765102263658,0.05826786,132.1,132.08,3.19]
[1765102264167,0.05826786,132.1,132.09,3.19]
[1765102265165,3.22,132.12,132.09,3.19]
[1765102265356,3.22,132.12,132.08,6.8133]
[1765102265562,3.22,132.12,132.08,10.0033]
[1765102266062,3.22,132.12,132.09,3.19]
[1765102266373,3.27539828,132.12,132.09,3.23785961]
[1765102269567,3.27539828,132.12,132.1,3.19]
[1765102269873,0.05539828,132.12,132.1,3.19]
[1765102270067,3.27539828,132.12,132.09,3.23785961]
[1765102272670,3.27539828,132.12,132.09,0.04785961]
[1765102273472,3.27539828,132.12,132.09,3.23785961]
[1765102274266,3.27539828,132.12,132.09,0.04785961]
[1765102281478,67.81539828,132.12,132.09,0.04785961]
[1765102281679,3.26,132.11,132.09,0.04785961]
[1765102283281,3.26,132.1,132.09,0.04785961]
[1765102288296,67.8,132.1,132.09,0.04785961]
[1765102288482,3.26,132.08,132.05,9.38989906]
[1765102289493,3.31507721,132.08,132.05,9.44562921]
[1765102290992,3.31507721,132.08,132.05,12.59562921]
[1765102291194,3.26,132.07,132.05,12.59562921]
[1765102305502,3.26,132.06,132.05,0.05573015]
[1765102310904,3.32,132.02,132.01,9.38989906]
[1765102311205,3.32,132.02,132.0,12.64989906]
[1765102311410,3.32,132.02,132.0,3.26]
[1765102312004,3.37829135,132.02,132.0,0.05080637]
[1765102312207,3.32,132.01,132.0,0.05080637]
[1765102321718,3.32,132.01,131.95,9.38989906]
[1765102322017,3.32,132.01,131.94,3.23]
[1765102322610,3.32,132.01,131.96,0.0532186]
[1765102322816,3.1,131.98,131.96,3.2832186]
[1765102323118,0.05267647,131.99,131.96,3.2832186]
[1765102323119,3.15267647,131.99,131.96,3.2832186]
[1765102323313,0.05267647,131.99,131.96,3.2832186]
[1765102323512,3.15267647,131.99,131.96,3.2832186]
[1765102327524,3.1,131.98,131.96,3.2832186]
[1765102331327,9.97087647,131.99,131.96,3.2832186]
[1765102332123,3.1,131.98,131.96,3.2832186]
[1765102334133,9.97087647,131.99,131.96,3.2832186]
[1765102335738,3.1,131.98,131.96,3.2832186]
[1765102341041,3.35267647,131.99,131.96,3.2832186]
[1765102345258,3.3,131.97,131.96,0.0532186]
[1765102345648,5.35694792,131.97,131.96,0.0532186]
[1765102352360,3.3,131.96,131.93,12.43989906]
[1765102352560,3.3,131.96,131.93,3.05]
[1765102353257,3.3,131.96,131.93,12.43989906]
[1765102353460,3.3,131.95,131.93,12.49810809]
[1765102353853,3.3,131.95,131.94,3.05]
[1765102354056,3.3,131.95,131.93,9.44810809]
[1765102354254,3.3,131.95,131.93,12.49810809]
[1765102354762,3.3,131.95,131.94,3.05]
[1765102355162,6.87033714,131.96,131.94,3.05]
[1765102355362,10.17033714,131.96,131.94,3.05]
[1765102355562,0.05053714,131.96,131.94,3.05]
[1765102355764,0.05053714,131.96,131.95,3.05]
[1765102356262,0.05053714,131.96,131.95,12.43989906]
[1765102360563,3.35053714,131.96,131.95,9.38989906]
[1765102360866,3.35053714,131.96,131.94,12.43989906]
[1765102366269,10.17033714,131.96,131.94,12.43989906]
[1765102369471,3.17,131.95,131.94,12.43989906]
[1765102371274,6.87033714,131.96,131.94,12.43989906]
[1765102371466,6.87033714,131.96,131.95,3.15]
[1765102371670,10.04033714,131.96,131.95,3.15]
[1765102378074,6.818,132.0,131.95,3.15]
[1765102378264,3.17,131.99,131.97,3.15]
[1765102378568,3.17,131.99,131.96,12.53989906]
[1765102378767,3.17,131.99,131.97,3.15]